[Event "Swiss Championship U16 2022"]
[Site "Biel"]
[Date "2022.07.20"]
[Round "5.4"]
[White "Papaux, Steve"]
[Black "Erne, Raphael"]
[Result "1/2-1/2"]
[ECO "E09"]
[WhiteElo "2031"]
[BlackElo "2060"]
[Annotator "TA"]
[PlyCount "101"]
[EventDate "2022.07.18"]
[EventType "swiss"]
[EventCountry "SUI"]
[SourceTitle "playchess.com"]
[Source "ChessBase"]
[SourceQuality "1"]
[TimeControl "5400+30"]

{[%evp 25,101,40,48,55,74,75,73,79,81,87,83,75,82,73,71,66,117,115,136,118,204,139,133,134,174,176,202,218,217,172,401,377,402,401,418,438,480,388,613,613,583,573,687,673,660,193,195,154,127,62,65,65,65,68,68,45,43,38,39,39,36,36,37,37,35,0,40,38,43,43,74,74,74,55,58,58,58,50]} 1. d4 {[%emt 0:00:03]} d5 {[%emt 0:00:09]} 2. c4 {[%emt 0:00:06]} c6 {[%emt 0:00:07]} 3. Nf3 {[%emt 0:00:08]} Nf6 {[%emt 0:00:29]} 4. g3 {[%emt 0:01:17]} e6 {[%emt 0:00:04]} 5. Bg2 {[%emt 0:01:00]} Be7 {[%emt 0:00:17]} 6. O-O {[%emt 0:00:33]} O-O {[%emt 0:05:26]} 7. Nc3 {[%emt 0:01:46]} b6 {[%emt 0:01:36]} 8. Qc2 {[%emt 0:03:52]} Bb7 {[%emt 0:02:13]} 9. Rd1 {[%emt 0:06:37]} Nbd7 {[%emt 0:10:08]} 10. e4 {[%emt 0:11:47]} dxe4 {[%emt 0:00:28]} 11. Nxe4 {[%emt 0:00:39]} Nxe4 {[%emt 0:07:58]} 12. Qxe4 {[%emt 0:00:20]} Nf6 {[%emt 0:01:43]} 13. Qe2 {[%emt 0:05:07]} Qc8 {[%emt 0:16:26]} 14. Bf4 {[%emt 0:08:45] E09: Closed Catalan: Main Line: 7 Qc2 c6 8 Nbd2.} Rd8 {[%emt 0:08:48]} 15. Rac1 {[%emt 0:19:23][%cal Od4d5]} Re8 {[%emt 0:05:30] [#]} 16. Bh3 $146 {[%emt 0:13:22][%cal Od4d5] Hoping for d5! White is better.} ({Predecessor:} 16. Ne5 c5 17. Bxb7 Qxb7 18. dxc5 Bxc5 19. Bg5 Qe4 20. Re1 Qxe2 21. Rxe2 {½-½ (65) Nguyen,H (1970)-Ibrahimli,M (2436) Chess.com INT 2020}) 16... Qd8 {[%emt 0:01:36] Against d5} 17. Ne5 {[%emt 0:01:42]} Bf8 {[%emt 0:26:35]} 18. Bg2 {[%emt 0:02:38]} Rc8 {[%emt 0:00:18]} 19. Bg5 {[%emt 0:01:12]} h6 {[%emt 0:00:00]} 20. Bxf6 {[%emt 0:00:48]} Qxf6 {[%emt 0:00:37]} (20... gxf6 $14 21. Ng4 (21. Qg4+ Bg7 $11) 21... Qe7) 21. c5 $16 {[%emt 0:09:22]} Qd8 {[%emt 0:01:44]} 22. b4 {[%emt 0:04:22] aiming for b5. 0x0.00200b16ad8fdp-1022s more active pieces.} f6 {[%emt 0:01:20]} (22... b5 $16 {is a better defense.}) 23. Nc4 {[%emt 0:00:00]} Ba6 {[%emt 0:03:24]} 24. a4 {[%emt 0:01:17]} Bxc4 {[%emt 0:00:18]} 25. Qxc4 {[%emt 0:01:05]} bxc5 {[%emt 0:00:56]} 26. dxc5 {[%emt 0:00:00]} Qc7 {[%emt 0:01:57]} 27. Bh3 {[%emt 0:00:00]} Kh8 $2 {[%emt 0:00:55] [#]} (27... Qf7 28. Rd3 g6) 28. Bxe6 $18 {[%emt 0:00:00]} Rcd8 {[%emt 0:02:30]} 29. Qg4 {[%emt 0:03:14]} Rxd1+ {[%emt 0:00:00]} 30. Rxd1 {[%emt 0:00:52]} Qe5 {[%emt 0:01:19]} 31. Bd7 {[%emt 0:01:31][%csl LRc6,LRe8]} Qe2 {[%emt 0:00:19]} (31... Rd8 $142 32. Bxc6 f5) 32. Qxe2 {[%emt 0:00:00]} Rxe2 {[%emt 0:00:09]} 33. Bxc6 {[%emt 0:00:04][%mdl 4096] [#] Endgame And now Rd8 would win. KRB-KRB} Kh7 {[%emt 0:02:14]} 34. Kf1 {[%emt 0:00:50]} Re6 {[%emt 0:00:18]} 35. Rd8 $2 {[%emt 0:00:28]} (35. Bb5) 35... Bxc5 {[%emt 0:00:00]} 36. Bd7 Bb6 {[%emt 0:01:03]} 37. Bxe6 {[%emt 0:00:04]} ({White should try} 37. Rb8 $16 Re7 38. Rb7) 37... Bxd8 $16 {[%emt 0:00:11] KB-KB} 38. Ke2 {[%emt 0:00:50]} Kg6 {[%emt 0:00:15]} 39. Kd3 {[%emt 0:00:38]} f5 {[%emt 0:00:15]} 40. Kc4 {[%emt 0:00:17] a5 is the strong threat.} Kf6 {[%emt 0:00:50]} 41. Bc8 {[%emt 0:00:00]} Bb6 {[%emt 0:00:21]} 42. f3 {[%emt 0:00:45]} Bg1 {[%emt 0:00:15]} 43. h3 {[%emt 0:00:33]} Bf2 {[%emt 0:00:14]} 44. g4 {[%emt 0:00:00]} fxg4 {[%emt 0:00:21]} 45. fxg4 {[%emt 0:00:00]} Ke7 {[%emt 0:02:28]} 46. Kd5 {[%emt 0:00:00]} (46. g5 $5) 46... Kd8 {[%emt 0:00:10]} 47. Bf5 {[%emt 0:00:10]} Kc7 {[%emt 0:00:16]} 48. Ke6 {[%emt 0:00:24]} Bd4 {[%emt 0:00:34]} 49. h4 {[%emt 0:00:05]} Bc3 {[%emt 0:00:00]} 50. Kf7 {[%emt 0:00:30]} Bf6 {[%emt 0:00:00]} 51. h5 {[%emt 0:00:00] Black defended with fortune.  Weighted Error Value: White=0.33/Black=0.27 (precise)} 1/2-1/2

[Event "Swiss Championship U16 2022"]
[Site "Biel"]
[Date "2022.07.20"]
[Round "5.5"]
[White "Kwiatkowski, Jakub"]
[Black "Schellenberg, Simon"]
[Result "0-1"]
[ECO "B01"]
[WhiteElo "1770"]
[BlackElo "1899"]
[Annotator "NA RC COMBH"]
[PlyCount "72"]
[EventDate "2022.07.18"]
[EventType "swiss"]
[EventCountry "SUI"]
[SourceTitle "playchess.com"]
[Source "ChessBase"]
[SourceQuality "1"]
[TimeControl "5400+30"]

{[%evp 8,72,43,19,66,65,62,73,80,81,86,32767,32767,32767,80,32767,79,9,74,66,72,54,72,-24,-22,-73,-50,-65,-26,-25,-17,-53,0,-50,32767,-69,-49,-119,-59,-98,-60,-91,-82,-75,-88,-116,0,-22,32767,-205,32767,-393,-391,-1231,-511,-497,-431,-514,-669,-735,-525,-564,-539,-528,-590,32767,-568]} 1. e4 {[%emt 0:00:02]} d5 {[%emt 0:00:07]} 2. exd5 {[%emt 0:00:15]} Nf6 {[%emt 0:00:07]} 3. d4 {[%emt 0:00:04]} Nxd5 {[%emt 0:00:12]} 4. c4 {[%emt 0:00:06]} Nf6 {[%emt 0:00:10]} 5. Nc3 {[%emt 0:00:07]} Bf5 {[%emt 0:00:16]} ({Better is} 5... e5 $1 $11) 6. Nf3 {[%emt 0:00:11]} e6 {[%emt 0:00:09]} 7. Qb3 {[%emt 0:00:37]} Qc8 {[%emt 0:00:47]} 8. Nh4 {[%emt 0:01:34]} Bg6 {[%emt 0:00:15]} 9. Nxg6 {[%emt 0:00:30]} hxg6 {[%emt 0:00:15]} 10. Bg5 {[%emt 0:00:41]} Be7 {[%emt 0:02:53]} 11. h4 {[%emt 0:00:40]} Nbd7 {[%emt 0:01:02]} 12. Bd3 {[%emt 0:02:20]} (12. O-O-O $16) 12... c6 {[%emt 0:00:52]} (12... c5 $1 $11 {remains equal.}) 13. O-O-O {[%emt 0:02:32]} Qc7 {[%emt 0:00:26]} 14. Kb1 {[%emt 0:04:23]} Qb6 {[%emt 0:02:19]} 15. Qc2 {[%emt 0:05:55]} ({White should try} 15. Qxb6 $14 axb6 16. f3) 15... Qxd4 {[%emt 0:08:45]} 16. Bxg6 {[%emt 0:19:29]} Qxc4 {[%emt 0:01:02]} 17. Bd3 {[%emt 0:03:03]} Qb4 {[%emt 0:01:37]} (17... Qc5 $17) 18. a3 {[%emt 0:02:22]} Qb6 {[%emt 0:00:51]} 19. Rhe1 {[%emt 0:10:50]} (19. f4 $11) 19... a6 {[%emt 0:12:20]} (19... O-O-O $15) 20. f3 {[%emt 0:18:41]} (20. f4 $11) 20... O-O-O {[%emt 0:11:39]} 21. g4 {[%emt 0:04:58]} Qc7 {[%emt 0:02:09]} 22. Ne4 {[%emt 0:02:02]} (22. h5 $15) 22... Rde8 {[%emt 0:02:37]} ({Better is} 22... Ne5 $17 23. Be2 Rxd1+ 24. Bxd1 Nxe4 25. Qxe4 Bxg5 26. hxg5 Ng6) 23. Rc1 {[%emt 0:02:33]} (23. h5 $15) 23... Nxe4 {[%emt 0:00:47]} ({Black should try} 23... Nd5 $17 24. Bxe7 Rxe7) 24. Rxe4 {[%emt 0:00:41]} Bxg5 {[%emt 0:01:37]} 25. hxg5 {[%emt 0:00:07]} Rh2 {[%emt 0:00:43]} 26. Qa4 {[%emt 0:01:36] [#]} (26. Qc3 $1 $15) 26... Kd8 {[%emt 0:06:48]} ({Better is} 26... Nb6 $1 $17 {[%cal Rb6a4]} 27. Qb3 g6) 27. Rd4 {[%emt 0:02:52]} Re7 {[%emt 0:12:26]} 28. Bxa6 $2 {[%emt 0:02:12]} Qb6 {[%emt 0:01:19]} 29. Bb5 $2 {[%emt 0:02:48]} (29. Rb4 {is a better defense.} Qxa6 30. Qxa6 bxa6 31. Rxc6) 29... Qxb5 {[%emt 0:00:22]} 30. Qa8+ $2 {[%emt 0:00:08]} (30. Qxb5 cxb5 31. Rc3) 30... Kc7 {[%emt 0:00:08]} 31. Rb4 {[%emt 0:00:08]} Qa6 {[%emt 0:00:36]} 32. Qg8 {[%emt 0:01:10]} g6 {[%emt 0:04:18]} 33. Rd4 {[%emt 0:00:58]} Qb6 {[%emt 0:01:29]} 34. Rb4 {[%emt 0:00:32]} Qa7 {[%emt 0:00:23]} 35. f4 {[%emt 0:00:58]} Qb8 {[%emt 0:01:41]} 36. Qg7 {[%emt 0:00:31]} Qh8 $19 {[%emt 0:00:27]} 0-1

[Event "Swiss Championship U16 2022"]
[Site "Biel"]
[Date "2022.07.20"]
[Round "5.6"]
[White "Hirzel, Cedric"]
[Black "Knapp, Yanik"]
[Result "1/2-1/2"]
[ECO "E04"]
[WhiteElo "1649"]
[BlackElo "1675"]
[Annotator "NA RC COMBH"]
[PlyCount "100"]
[EventDate "2022.07.18"]
[EventType "swiss"]
[EventCountry "SUI"]
[SourceTitle "playchess.com"]
[Source "ChessBase"]
[SourceQuality "1"]
[TimeControl "5400+30"]

1. c4 {[%emt 0:00:03]} e6 {[%emt 0:00:08]} 2. Nf3 {[%emt 0:00:06]} Nf6 {[%emt 0:00:13]} 3. d4 {[%emt 0:00:04]} d5 {[%emt 0:00:09]} 4. g3 {[%emt 0:00:04]} dxc4 {[%emt 0:00:13]} 5. Bg2 {[%emt 0:00:11]} Bd7 {[%emt 0:00:01]} 6. Ne5 {[%emt 0:00:04]} Bc6 {[%emt 0:00:06]} 7. Nxc6 {[%emt 0:00:08]} Nxc6 {[%emt 0:00:07]} 8. O-O {[%emt 0:00:23]} Qd7 {[%emt 0:01:21]} 9. e3 {[%emt 0:00:17]} Rd8 {[%emt 0:04:44]} 10. Qe2 {[%emt 0:00:51]} e5 {[%emt 0:10:57]} 11. dxe5 {[%emt 0:00:53]} Nxe5 {[%emt 0:00:28]} 12. Bxb7 {[%emt 0:15:13]} Bb4 {[%emt 0:07:13]} 13. Nc3 {[%emt 0:01:48]} Bxc3 {[%emt 0:00:00]} 14. bxc3 {[%emt 0:02:52]} Nd3 {[%emt 0:10:30]} 15. Bg2 {[%emt 0:02:11]} O-O {[%emt 0:01:04]} 16. e4 {[%emt 0:03:19]} Rfe8 {[%emt 0:01:18]} 17. Bg5 {[%emt 0:03:21]} Qe6 {[%emt 0:04:18]} 18. Rab1 {[%emt 0:02:24]} Rb8 {[%emt 0:07:48]} 19. Qf3 {[%emt 0:05:50]} Rb6 {[%emt 0:04:49]} 20. Rxb6 {[%emt 0:00:10]} cxb6 {[%emt 0:00:00]} 21. Bxf6 {[%emt 0:01:26]} Qxf6 {[%emt 0:00:20]} 22. Qxf6 {[%emt 0:00:03]} gxf6 {[%emt 0:00:38]} 23. Rd1 {[%emt 0:05:27]} Re5 {[%emt 0:12:18]} 24. Bf1 {[%emt 0:03:26]} Rxe4 {[%emt 0:00:00]} 25. Bxd3 {[%emt 0:18:15]} cxd3 {[%emt 0:00:26]} 26. Rxd3 {[%emt 0:03:40]} Ra4 {[%emt 0:00:28]} 27. Rd2 {[%emt 0:03:03]} Kf8 {[%emt 0:00:14]} 28. Kf1 {[%emt 0:01:04]} Ra3 {[%emt 0:00:06]} 29. Rc2 {[%emt 0:00:29]} Ke7 {[%emt 0:00:07]} 30. Ke2 {[%emt 0:01:43]} Kd6 {[%emt 0:00:17]} 31. Kd3 {[%emt 0:02:36]} Kc5 {[%emt 0:06:15]} 32. f4 {[%emt 0:01:47]} b5 {[%emt 0:01:21]} 33. Ke4 {[%emt 0:05:09]} Kc4 {[%emt 0:00:24]} 34. Kf5 {[%emt 0:08:45]} Ra6 {[%emt 0:01:39]} 35. h4 {[%emt 0:03:45]} Rb6 {[%emt 0:04:18]} 36. Ke4 {[%emt 0:04:32]} Re6+ {[%emt 0:00:48]} 37. Kf5 {[%emt 0:03:05]} Kd3 {[%emt 0:01:24]} 38. Rb2 {[%emt 0:01:39]} a6 {[%emt 0:02:44]} 39. Rb3 {[%emt 0:01:47]} Rc6 {[%emt 0:00:52]} 40. h5 {[%emt 0:02:55]} Rxc3 {[%emt 0:00:43]} 41. Kxf6 {[%emt 0:00:00]} Rxb3 {[%emt 0:00:23]} 42. axb3 {[%emt 0:00:38]} a5 {[%emt 0:07:31]} 43. h6 {[%emt 0:00:00]} a4 {[%emt 0:00:13]} 44. bxa4 {[%emt 0:00:10]} bxa4 {[%emt 0:00:11]} 45. Kg7 {[%emt 0:00:09]} a3 {[%emt 0:00:07]} 46. Kxh7 {[%emt 0:00:21]} a2 {[%emt 0:00:23]} 47. Kg8 {[%emt 0:00:18]} a1=Q {[%emt 0:00:18]} 48. h7 {[%emt 0:08:03]} Qg1 {[%emt 0:00:16]} 49. h8=Q {[%emt 0:00:14]} Qxg3+ {[%emt 0:00:09]} 50. Kxf7 {[%emt 0:00:07]} Qxf4+ {[%emt 0:01:41]} 1/2-1/2

[Event "Swiss Championship U16 2022"]
[Site "Biel"]
[Date "2022.07.20"]
[Round "5.7"]
[White "Palmonella, Valentin"]
[Black "Saminskij, David"]
[Result "1-0"]
[ECO "C07"]
[WhiteElo "1778"]
[BlackElo "1469"]
[Annotator "NA RC COMBH"]
[PlyCount "65"]
[EventDate "2022.07.18"]
[EventType "swiss"]
[EventCountry "SUI"]
[SourceTitle "playchess.com"]
[Source "ChessBase"]
[SourceQuality "1"]
[TimeControl "5400+30"]

1. e4 {[%emt 0:00:03]} e6 {[%emt 0:00:53]} 2. d4 {[%emt 0:00:11]} d5 {[%emt 0:00:06]} 3. Nd2 {[%emt 0:00:22]} c5 {[%emt 0:00:51]} 4. exd5 {[%emt 0:00:30]} Qxd5 {[%emt 0:00:06]} 5. Ngf3 {[%emt 0:00:10]} Nf6 {[%emt 0:00:10]} 6. Bc4 {[%emt 0:00:31]} Qd8 {[%emt 0:00:32]} 7. O-O {[%emt 0:01:13]} Nc6 {[%emt 0:00:14]} 8. Nb3 {[%emt 0:02:36]} cxd4 {[%emt 0:00:57]} 9. Nbxd4 {[%emt 0:01:21]} Nxd4 {[%emt 0:00:38]} 10. Nxd4 {[%emt 0:00:43]} Be7 {[%emt 0:03:10]} 11. Bf4 {[%emt 0:03:03]} Nd5 {[%emt 0:04:35]} 12. Bg3 {[%emt 0:04:31]} a6 {[%emt 0:00:00]} 13. c3 {[%emt 0:03:15]} O-O {[%emt 0:00:00]} 14. Qf3 {[%emt 0:01:46]} b5 {[%emt 0:00:00]} 15. Nc6 {[%emt 0:00:45]} Qd7 {[%emt 0:00:00]} 16. Bxd5 {[%emt 0:00:57]} exd5 {[%emt 0:00:00]} 17. Qxd5 {[%emt 0:00:28]} Bd8 {[%emt 0:11:14]} 18. Qxd7 {[%emt 0:11:40]} Bxd7 {[%emt 0:00:17]} 19. Nxd8 {[%emt 0:01:14]} Raxd8 {[%emt 0:00:00]} 20. Bc7 {[%emt 0:00:46]} Rc8 {[%emt 0:00:00]} 21. Ba5 {[%emt 0:00:42]} Rfe8 {[%emt 0:03:24]} 22. Rfe1 {[%emt 0:09:57]} Rxe1+ {[%emt 0:00:00]} 23. Rxe1 {[%emt 0:00:02]} Re8 {[%emt 0:00:00]} 24. Rd1 {[%emt 0:02:37]} Be6 {[%emt 0:00:00]} 25. b3 {[%emt 0:00:52]} g6 {[%emt 0:00:00]} 26. f3 {[%emt 0:00:32]} Re7 {[%emt 0:04:38]} 27. Rd8+ {[%emt 0:16:16]} Kg7 {[%emt 0:00:00]} 28. Bb6 {[%emt 0:00:23]} Bf5 {[%emt 0:00:00]} 29. Kf2 {[%emt 0:01:40]} Bb1 {[%emt 0:01:29]} 30. Bd4+ {[%emt 0:01:22]} f6 {[%emt 0:00:00]} 31. Rd6 {[%emt 0:00:52]} Kh6 {[%emt 0:05:30]} 32. Bxf6 {[%emt 0:04:56]} Re8 {[%emt 0:00:00]} 33. g4 {[%emt 0:01:43]} 1-0

[Event "Swiss Championship U16 2022"]
[Site "Biel"]
[Date "2022.07.20"]
[Round "5.8"]
[White "Sosnovski, Nikita"]
[Black "Gendre, Arthur"]
[Result "1-0"]
[ECO "B83"]
[WhiteElo "1584"]
[BlackElo "1414"]
[Annotator "NA RC COMBH"]
[PlyCount "57"]
[EventDate "2022.07.18"]
[EventType "swiss"]
[EventCountry "SUI"]
[SourceTitle "playchess.com"]
[Source "ChessBase"]
[SourceQuality "1"]
[TimeControl "5400+30"]

1. e4 {[%emt 0:00:02]} c5 {[%emt 0:00:09]} 2. Nf3 {[%emt 0:00:04]} d6 {[%emt 0:00:02]} 3. d4 {[%emt 0:00:03]} cxd4 {[%emt 0:00:04]} 4. Nxd4 {[%emt 0:00:07]} Nf6 {[%emt 0:00:07]} 5. Nc3 {[%emt 0:00:05]} e6 {[%emt 0:01:00]} 6. Be2 {[%emt 0:00:54]} Be7 {[%emt 0:00:38]} 7. Be3 {[%emt 0:00:07]} Nc6 {[%emt 0:02:45]} 8. f3 {[%emt 0:00:15]} O-O {[%emt 0:00:51]} 9. Qd2 {[%emt 0:00:10]} Bd7 {[%emt 0:03:30]} 10. Ndb5 {[%emt 0:02:29]} Nb4 {[%emt 0:02:21]} 11. a3 {[%emt 0:00:37]} Bxb5 {[%emt 0:01:00]} 12. Nxb5 {[%emt 0:00:41]} Nc6 {[%emt 0:02:50]} 13. O-O-O {[%emt 0:01:02]} d5 {[%emt 0:05:07]} 14. Qe1 {[%emt 0:07:15]} a6 {[%emt 0:03:24]} 15. exd5 {[%emt 0:01:21]} exd5 {[%emt 0:01:00]} 16. Nd4 {[%emt 0:00:38]} Nxd4 {[%emt 0:00:22]} 17. Bxd4 {[%emt 0:01:38]} Rc8 {[%emt 0:01:28]} 18. Kb1 {[%emt 0:00:35]} Qc7 {[%emt 0:03:08]} 19. Bd3 {[%emt 0:02:48]} Rfe8 {[%emt 0:05:40]} 20. Qh4 {[%emt 0:05:52]} h6 {[%emt 0:05:35]} 21. Qh3 {[%emt 0:02:28]} Qf4 {[%emt 0:08:16]} 22. Rhe1 {[%emt 0:08:16]} Bc5 {[%emt 0:02:00]} 23. Rxe8+ {[%emt 0:01:56]} Rxe8 {[%emt 0:00:19]} 24. Bxc5 {[%emt 0:00:52]} d4 {[%emt 0:02:50]} 25. Bb4 {[%emt 0:01:09]} Nd5 {[%emt 0:01:04]} 26. Qd7 {[%emt 0:00:59]} Qe5 {[%emt 0:00:54]} 27. Re1 {[%emt 0:00:23]} Ne3 {[%emt 0:03:35]} 28. f4 {[%emt 0:01:11]} Qe6 {[%emt 0:00:34]} 29. Qxd4 {[%emt 0:05:03]} 1-0

[Event "Swiss Championship U16 2022"]
[Site "Biel"]
[Date "2022.07.20"]
[Round "6.1"]
[White "Doetsch-Thaler, Nicos"]
[Black "Kasipour Azbari, Seyed Arvin"]
[Result "0-1"]
[ECO "B66"]
[WhiteElo "1837"]
[BlackElo "1944"]
[Annotator "TA"]
[PlyCount "66"]
[EventDate "2022.07.18"]
[EventType "swiss"]
[EventCountry "SUI"]
[SourceTitle "playchess.com"]
[Source "ChessBase"]
[SourceQuality "1"]
[TimeControl "5400+30"]

{[%evp 14,66,49,3,27,0,0,0,0,-7,0,0,0,0,0,0,0,0,0,0,0,0,3,-47,-16,-108,-80,-71,-42,-114,-106,-180,-160,-177,-194,-207,-198,-406,-359,-323,-350,-335,-322,-307,-286,-319,-272,-618,-578,-570,-529,-1142,-1071,-29990,-29991]} 1. e4 {[%emt 0:00:09]} c5 {[%emt 0:00:43]} 2. Nf3 {[%emt 0:00:19]} d6 {[%emt 0:00:32]} 3. d4 {[%emt 0:00:41]} cxd4 {[%emt 0:00:53]} 4. Nxd4 {[%emt 0:00:20]} Nf6 {[%emt 0:00:02]} 5. Nc3 {[%emt 0:00:10]} Nc6 {[%emt 0:01:26]} 6. Bg5 {[%emt 0:00:41]} e6 {[%emt 0:01:11]} 7. Qd2 {[%emt 0:01:51]} a6 {[%emt 0:21:50]} 8. f3 {[%emt 0:02:51]} (8. Nxc6 $14 {is more appropriate.} bxc6 9. Be2) 8... Bd7 {[%emt 0:06:47] B66: Sicilian: Richter-Rauzer: 7...a6 8 0-0-0 h6.} 9. Be2 {[%emt 0:05:27]} Be7 {[%emt 0:00:32][%cal Of6e4]} 10. O-O {[%emt 0:03:47] [#]} h6 $146 {[%emt 0:00:38] The position is equal.} ({Predecessor:} 10... Qc7 11. Nxc6 Bxc6 12. Kh1 h6 13. Be3 d5 14. exd5 Nxd5 15. Nxd5 Bxd5 16. c4 Bc6 {½-½ (52) Parkhurst Casas,M (1869)-Guardado Flores,D (1683) San Salvador 2015}) 11. Be3 {[%emt 0:15:05]} Qc7 {[%emt 0:12:04]} 12. Qe1 {[%emt 0:14:09]} Nxd4 {[%emt 0:00:32]} 13. Bxd4 {[%emt 0:02:49]} e5 {[%emt 0:00:32]} 14. Be3 {[%emt 0:03:03]} O-O {[%emt 0:10:20]} 15. Kh1 {[%emt 0:03:16]} b5 {[%emt 0:00:26]} 16. a3 {[%emt 0:08:50]} Be6 {[%emt 0:03:57]} 17. f4 {[%emt 0:14:52]} Bc4 {[%emt 0:07:12]} 18. f5 {[%emt 0:04:40]} (18. Bd3 $11) 18... Rfc8 {[%emt 0:08:34]} 19. Rg1 {[%emt 0:01:49]} (19. Bf2 $11) 19... Bxe2 {[%emt 0:00:00]} 20. Qxe2 {[%emt 0:00:15]} Qc4 {[%emt 0:01:17] Threatens to win with ...Qxe2.} 21. Qf3 {[%emt 0:01:51] [#]} (21. Qd3 $1 $15) 21... a5 $1 $17 {[%emt 0:04:54][%cal Ba6a5,Ba5b4,Bb4b3,Bb3a2][%mdl 32]} 22. g4 {[%emt 0:02:18]} (22. Rge1 $17) 22... b4 $19 {[%emt 0:00:51]} 23. Na4 {[%emt 0:03:40] [#] aiming for Nb6.} Bd8 {[%emt 0:05:38]} ({Resist} 23... Qxc2 24. Nb6 Qb3 25. axb4 $16 (25. Nxc8 Rxc8 26. axb4 a4 $11) (25. Nxa8 Rxa8 26. axb4 a4 $11)) (23... Qxe4 24. Qxe4 Nxe4 25. Nb6 bxa3 26. Nxc8 Rxc8 27. Rxa3 $14) 24. axb4 {[%emt 0:01:12]} axb4 {[%emt 0:00:00]} 25. c3 {[%emt 0:08:11]} (25. g5 {was necessary.} hxg5 26. Bxg5 Qxc2 27. Bxf6 Bxf6 28. b3) 25... b3 {[%emt 0:01:14]} 26. Nb6 {[%emt 0:00:11]} Bxb6 {[%emt 0:00:16]} 27. Bxb6 {[%emt 0:00:12]} Qxe4 {[%emt 0:00:00]} ({Avoid the trap} 27... Nxe4 $2 28. Rae1 Ra4 29. Qg2 $19) 28. Qxe4 {[%emt 0:00:00]} Nxe4 {[%emt 0:01:41]} 29. Rgd1 {[%emt 0:01:04]} Ra2 {[%emt 0:03:21]} 30. Rxa2 {[%emt 0:00:23]} (30. Rab1) 30... bxa2 {[%emt 0:00:13]} 31. Ra1 {[%emt 0:00:22]} Rb8 {[%emt 0:02:03]} 32. Be3 {[%emt 0:00:00]} Rxb2 {[%emt 0:00:30] ( -> ...Rb1+)} 33. c4 {[%emt 0:00:17]} Rb1+ {[%emt 0:00:00] Weighted Error Value: White=0.84/Black=0.12 (very precise)} 0-1